bitfinex/quotes_ETHUSD_20220117
["timestamp","ask_amount","ask_price","bid_price","bid_amount"]
[1642418657825,0.00113684,3272.1,3271.9,0.5564]
[1642418658025,0.00113684,3272.1,3271.9,0.438]
[1642418658225,2.61713453,3272.4,3271.9,0.438]
[1642418658627,0.00227369,3272.3,3271.9,0.438]
[1642418658931,0.00170527,3272.2,3271.9,0.438]
[1642418659442,0.04595244,3272.8,3271.9,0.438]
[1642418659443,0.00113684,3272.1,3271.9,0.438]
[1642418659628,0.00113684,3272.1,3271.6,1.1757]
[1642418659826,0.04588398,3272.5,3271.6,1.1757]
[1642418660033,2.61713453,3272.3,3271.7,0.00113685]
[1642418660489,0.00170527,3272.2,3271.7,0.00113685]
[1642418660675,0.00170527,3272.2,3271.6,0.00170527]
[1642418660876,0.00113684,3272.1,3271.6,0.00170527]
[1642418661079,0.00113684,3272.1,3271.5,0.0022737]
[1642418661282,0.00170527,3272.2,3271.5,0.0022737]
[1642418661694,0.00113684,3272.1,3271.5,0.0022737]
[1642418662078,2.6188398,3272.2,3271.5,0.0022737]
[1642418662492,0.00113684,3272.1,3271.5,0.0022737]
[1642418664337,0.00113684,3272.1,3271.4,0.00284212]
[1642418664738,2.66408688,3272.1,3271.4,0.00284212]
[1642418664936,2.82714861,3272.0,3271.4,0.00284212]
[1642418665132,2.66408688,3272.1,3271.4,0.00284212]
[1642418666140,2.61713453,3271.9,3271.4,0.00284212]
[1642418666935,1.5969104,3271.9,3271.4,0.00284212]
[1642418667134,1.5969104,3272.0,3271.4,0.00284212]
[1642418668008,0.04695235,3272.1,3271.4,0.00284212]
[1642418671743,0.04288162,3272.1,3271.4,0.00284212]
[1642418674739,0.06886861,3272.1,3271.4,0.00284212]
[1642418679631,0.04629135,3272.1,3271.4,0.00284212]
[1642418685282,0.04629135,3272.1,3271.4,0.76680212]
[1642418685493,0.04629135,3272.1,3271.4,1.88120212]
[1642418685699,0.04629135,3272.1,3271.9,1.30982644]
[1642418686082,0.04629135,3272.1,3271.9,1.60982644]
[1642418690688,0.04629135,3272.1,3271.9,0.3]
[1642418690893,0.04629135,3272.1,3271.7,0.76388]
[1642418691079,0.04629135,3272.1,3271.8,0.3]
[1642418691296,0.04629135,3272.1,3271.6,0.416]
[1642418691491,0.04629135,3272.1,3271.6,1.0]
[1642418691692,0.04629135,3272.1,3271.7,0.00113685]
[1642418692285,0.04629135,3272.1,3271.6,0.00170527]
[1642418692483,0.04515451,3272.1,3271.6,0.00170527]
[1642418692880,0.04515451,3272.1,3271.6,0.30170527]
[1642418693282,0.04515451,3272.1,3271.7,0.00113685]
[1642418695241,2.61766909,3272.0,3271.7,0.00113685]
[1642418695832,2.61766909,3272.0,3271.6,0.00170527]
[1642418696035,0.04515451,3272.1,3271.6,0.00170527]
[1642418696242,0.04515451,3272.1,3271.4,0.30284212]
[1642418696434,0.04515451,3272.1,3271.5,0.0022737]
[1642418697038,2.61782068,3272.0,3271.5,0.0022737]
[1642418699083,2.61782068,3272.0,3271.4,0.00284212]
[1642418702735,2.61782068,3272.0,3271.4,0.30284212]
[1642418703131,2.61782068,3272.0,3271.5,0.0022737]
[1642418705345,2.61782068,3272.0,3271.4,0.00284212]
[1642418706194,2.72991858,3271.9,3271.4,0.00284212]
[1642418706578,2.61782068,3272.0,3271.2,0.00397897]
[1642418706775,2.61782068,3272.0,3271.1,0.00454739]
[1642418707582,2.61782068,3272.0,3271.1,0.00454739]
[1642418710937,2.96529888,3271.9,3271.1,0.00454739]
[1642418711335,2.97487958,3271.9,3271.1,0.00454739]
[1642418711537,2.61782068,3272.0,3271.1,0.00454739]
[1642418711936,2.61782068,3271.8,3271.1,0.00454739]
[1642418712743,2.61782068,3272.0,3271.1,0.00454739]
[1642418712982,2.85689701,3271.9,3271.1,0.00454739]
[1642418713579,2.61782068,3272.0,3271.1,0.00454739]
[1642418714679,0.03026855,3271.9,3271.1,0.00454739]
[1642418715681,2.61782068,3271.8,3271.1,0.00454739]
[1642418717628,2.84782902,3271.7,3271.1,0.00454739]
[1642418717832,2.61782068,3271.8,3271.1,0.00454739]
[1642418718428,2.61782068,3271.6,3271.1,0.00454739]
[1642418719032,2.61782068,3271.6,3270.9,0.00568424]
[1642418719230,2.61782068,3271.8,3270.9,0.00568424]
[1642418720131,2.86433924,3271.7,3270.9,0.00568424]
[1642418720337,2.61782068,3271.8,3270.9,0.00568424]
[1642418721378,2.61782068,3271.6,3270.9,0.00568424]
[1642418722181,2.61782068,3271.7,3270.9,0.00568424]
[1642418723180,2.65353353,3271.8,3270.9,0.00568424]
[1642418723979,2.61782068,3271.7,3270.9,0.00568424]
[1642418727638,2.85867942,3271.6,3270.9,0.00568424]
[1642418727996,2.61782068,3271.7,3270.9,0.00568424]
[1642418728490,2.61782068,3271.7,3270.8,0.00625266]
[1642418729893,2.61782068,3271.7,3270.9,0.76412]
[1642418730092,2.61782068,3271.7,3271.0,0.76409]
[1642418730290,2.61782068,3271.7,3271.0,1.06920581]
[1642418730490,2.61782068,3271.7,3271.1,0.00454739]
[1642418732130,2.61782068,3271.7,3271.2,0.76397]
[1642418732328,2.61782068,3271.7,3271.2,3.78325411]
[1642418732531,2.61782068,3271.7,3271.3,1.41941054]
[1642418732731,2.61782068,3271.7,3271.3,1.41861054]
[1642418732929,2.61782068,3271.7,3271.5,1.15034688]
[1642418733130,2.61782068,3271.7,3271.5,1.75034688]
[1642418733330,0.08189778,3271.8,3271.6,0.00170527]
[1642418733537,0.08189778,3271.8,3271.6,0.76566527]
[1642418733932,0.08189778,3271.8,3271.7,0.00113685]
[1642418735235,0.08189778,3271.8,3271.7,3.56705362]
[1642418735485,0.08189778,3271.8,3271.7,4.13465362]
[1642418735678,0.08189778,3271.8,3271.7,4.13225362]
[1642418735880,0.08189778,3271.8,3271.7,2.36423685]
[1642418736083,0.08189778,3271.8,3271.7,2.36583685]
[1642418736280,0.08189778,3271.8,3271.7,2.36263685]
[1642418736479,0.08189778,3271.8,3271.7,2.36023685]
[1642418736877,0.08189778,3271.8,3271.7,2.35943685]
[1642418737079,0.08189778,3271.8,3271.7,2.35863685]
[1642418737281,0.04618493,3271.8,3271.7,2.35863685]
[1642418737480,0.04618493,3271.8,3271.7,2.35223685]
[1642418737681,0.04618493,3271.8,3271.7,2.23703685]
[1642418740528,0.04618493,3271.8,3271.7,1.55513685]
[1642418740727,0.04618493,3271.8,3271.7,1.55433685]
[1642418740928,0.04618493,3271.8,3271.7,1.43913685]
[1642418741730,0.04618493,3271.8,3271.7,0.43913685]
[1642418743180,0.03782928,3271.8,3271.7,0.00113685]
[1642418743980,0.03782928,3271.8,3271.5,0.0022737]
[1642418744580,0.03782928,3271.8,3271.5,1.5301937]
[1642418744979,0.03782928,3271.8,3271.6,0.00170527]
[1642418747432,0.03782928,3271.8,3271.6,0.30170527]
[1642418747833,0.03782928,3271.8,3271.7,0.00113685]
[1642418748432,0.03782928,3271.8,3271.5,0.0022737]
[1642418750878,0.03782928,3271.8,3271.5,1.5301337]
[1642418751078,0.03782928,3271.8,3271.6,0.3]
[1642418751280,0.03782928,3271.8,3271.6,0.42330527]
[1642418751480,0.03782928,3271.8,3271.7,0.11793685]
[1642418751685,0.03782928,3271.8,3271.7,0.11713685]
[1642418751880,0.03782928,3271.8,3271.7,0.00113685]
[1642418752683,0.03782928,3271.8,3271.6,0.00170527]
[1642418753084,2.65530795,3271.8,3271.6,0.00170527]
[1642418754085,0.03782928,3271.8,3271.6,0.00170527]
[1642418755330,0.03782928,3271.8,3271.6,0.11770527]
[1642418755533,0.03782928,3271.8,3271.6,0.11850527]
[1642418755731,0.03782928,3271.8,3271.7,0.00113685]
[1642418756532,2.65528896,3271.8,3271.6,0.11770527]
[1642418756734,2.65528896,3271.8,3271.6,0.11930527]
[1642418756937,2.65528896,3271.8,3271.7,0.00113685]
[1642418757733,0.03782928,3271.8,3271.7,0.00113685]
[1642418757982,0.03782928,3271.8,3271.6,0.00170527]
[1642418758377,0.03782928,3271.8,3271.6,0.11690527]
[1642418758378,2.65532909,3271.8,3271.6,0.11690527]
[1642418758576,2.65532909,3271.8,3271.6,0.12330527]
[1642418758777,2.65532909,3271.8,3271.7,0.11793685]
[1642418758977,2.65532909,3271.8,3271.7,0.00113685]
[1642418759181,0.03782928,3271.8,3271.7,0.00113685]
[1642418759877,0.07477883,3271.8,3271.7,0.00113685]
[1642418760077,0.07477883,3271.8,3271.7,0.11553685]
[1642418761479,0.07477883,3271.8,3271.7,0.00113685]
[1642418764930,0.07477883,3271.8,3271.7,0.11873685]
[1642418765132,0.07477883,3271.8,3271.7,0.11953685]
[1642418765331,0.07477883,3271.8,3271.7,0.00113685]
[1642418766184,0.03987916,3271.8,3271.6,0.00170527]
[1642418767887,0.03987916,3271.8,3271.6,0.12650527]
[1642418768187,0.03987916,3271.8,3271.7,0.00113685]
[1642418769835,0.06211077,3271.8,3271.7,0.00113685]
[1642418771433,0.06211077,3271.8,3271.6,0.00170527]
[1642418772340,0.06211077,3271.8,3271.6,0.76557527]
[1642418772535,0.06211077,3271.8,3271.6,0.88077527]
[1642418772735,0.06211077,3271.8,3271.7,0.11953685]
[1642418772988,0.06211077,3271.8,3271.7,0.11873685]
[1642418773180,0.06211077,3271.8,3271.7,0.12113685]
[1642418773382,0.06211077,3271.8,3271.7,0.11953685]
[1642418773580,0.06211077,3271.8,3271.7,0.11873685]
[1642418773781,0.06211077,3271.8,3271.7,0.11793685]
[1642418774081,0.06211077,3271.8,3271.7,0.11953685]
[1642418774281,0.06211077,3271.8,3271.7,0.12353685]
[1642418774480,0.06211077,3271.8,3271.7,0.12273685]
[1642418774681,0.06211077,3271.8,3271.7,0.12113685]
[1642418774885,0.06211077,3271.8,3271.7,0.11633685]
[1642418775081,0.06211077,3271.8,3271.7,0.00113685]
[1642418775082,2.67947626,3271.8,3271.7,0.00113685]
[1642418775282,2.67947626,3271.8,3271.7,0.11553685]
[1642418775580,2.67947626,3271.8,3271.7,0.11633685]
[1642418775982,2.67947626,3271.8,3271.7,0.11873685]
[1642418776181,2.67947626,3271.8,3271.7,0.11633685]
[1642418776382,2.67947626,3271.8,3271.7,0.11713685]
[1642418776582,2.67947626,3271.8,3271.7,0.11793685]
[1642418776847,2.67947626,3271.8,3271.7,0.11873685]
[1642418777145,2.67947626,3271.8,3271.7,0.11793685]
[1642418777347,2.67947626,3271.8,3271.7,0.11873685]
[1642418778146,2.67947626,3271.8,3271.7,0.11553685]
[1642418778348,2.67947626,3271.8,3271.7,0.11873685]
[1642418778546,2.67947626,3271.8,3271.7,0.06873685]
[1642418778847,2.67947626,3271.8,3271.7,0.1176]
[1642418779247,2.67947626,3271.8,3271.7,0.1168]
[1642418779448,2.67947626,3271.8,3271.6,0.88067]
[1642418779849,2.67947626,3271.8,3271.6,0.87987]
[1642418780582,2.67947626,3271.8,3271.7,0.116]
[1642418780787,0.06211077,3271.8,3271.7,0.1144]
[1642418780981,0.06211077,3271.8,3271.6,0.88067]
[1642418781183,0.06211077,3271.8,3271.7,0.116]
[1642418781583,2.67960246,3271.8,3271.7,0.116]
[1642418781983,2.67960246,3271.8,3271.6,0.87987]
[1642418782184,2.67960246,3271.8,3271.6,0.88147]
[1642418782385,2.67960246,3271.8,3271.7,0.116]
[1642418782783,2.67960246,3271.8,3271.6,0.88227]
[1642418782987,2.67960246,3271.8,3271.6,0.76387]
[1642418782988,0.06211077,3271.8,3271.6,0.76387]
[1642418783183,0.06211077,3271.8,3271.5,2.50187]
[1642418783783,0.06211077,3271.8,3271.5,1.06387]
[1642418783985,0.06211077,3271.8,3271.4,5.90143718]
[1642418784234,2.61754892,3271.7,3271.4,3.5079]
[1642418784437,2.61754892,3271.7,3271.5,0.00113685]
[1642418785836,2.61754892,3271.7,3271.3,0.00227369]
[1642418787335,3.86874223,3271.7,3271.5,0.01592477]
[1642418788381,2.61754892,3271.6,3271.5,0.01592477]
[1642418790582,2.61754892,3271.7,3271.5,0.01592477]
[1642418791590,2.61754892,3271.6,3271.5,0.01592477]
[1642418792937,2.61754892,3271.7,3271.5,0.01592477]
[1642418794438,2.61754892,3271.7,3271.5,0.77984477]
[1642418794740,2.61754892,3271.7,3271.5,0.01592477]
[1642418795787,2.61754892,3271.7,3271.5,0.31592477]
[1642418795988,2.61754892,3271.7,3271.5,0.01592477]
[1642418796182,2.61754892,3271.7,3271.5,0.31592477]
[1642418796882,2.61754892,3271.7,3271.5,1.07985477]
[1642418797085,2.61754892,3271.7,3271.5,0.31592477]
[1642418799087,2.61754892,3271.7,3271.5,0.01592477]
[1642418801437,2.84319709,3271.6,3271.5,0.01592477]
[1642418801636,2.61754892,3271.7,3271.5,0.01592477]
[1642418802040,2.86348317,3271.6,3271.5,0.01592477]
[1642418802437,5.4569663,3271.6,3271.5,0.01592477]
[1642418802638,2.61754892,3271.6,3271.5,0.01592477]
[1642418804295,17.88,3271.6,3271.5,0.01592477]
[1642418805294,20.49754892,3271.6,3271.5,0.01592477]
[1642418805893,20.49754892,3271.6,3271.3,0.00227369]
[1642418806093,3.24955733,3271.5,3271.3,0.00227369]
[1642418806304,3.24955733,3271.5,3270.5,0.00682108]
[1642418806943,1.36501678,3271.1,3270.5,0.00682108]
[1642418807143,0.00598523,3270.9,3270.5,0.00682108]
[1642418807341,2.99157684,3271.0,3270.5,0.00682108]
[1642418807942,2.88656082,3271.0,3270.5,0.00682108]
[1642418808143,2.61754892,3270.8,3270.5,0.00682108]
[1642418809345,2.61754892,3270.9,3270.5,0.00682108]
[1642418809745,0.04386066,3270.8,3270.5,0.00682108]
[1642418812390,0.02813639,3270.7,3270.5,0.00682108]
[1642418812591,0.02813639,3270.7,3270.1,0.00909478]
[1642418815544,0.02813639,3270.7,3269.9,0.01023162]
[1642418816749,2.61887611,3270.6,3269.9,0.01023162]
[1642418819784,0.04370092,3270.5,3269.9,0.01023162]
[1642418833110,1.3751323,3270.1,3269.9,0.01023162]
[1642418833901,0.04370092,3270.5,3269.9,0.01023162]
[1642418834102,0.04370092,3270.5,3269.8,0.08250562]
[1642418834500,0.00284211,3270.4,3269.8,0.08250562]
[1642418834703,0.04372387,3270.1,3269.8,0.08250562]
[1642418837440,0.0501422,3270.0,3269.8,0.08250562]
[1642418838545,0.0501422,3270.0,3269.4,2.37873522]
[1642418838743,3.44117012,3270.0,3269.4,1.122329]
[1642418838941,3.74117012,3270.0,3269.5,0.0022737]
[1642418839641,3.78492827,3270.0,3269.5,0.0022737]
[1642418839839,3.48492827,3270.0,3269.5,0.0022737]
[1642418840690,2.61949527,3269.9,3269.5,0.0022737]
[1642418840890,2.93597774,3269.8,3269.5,0.0022737]
[1642418842090,2.61949527,3269.7,3269.5,0.0022737]
[1642418842291,2.92273101,3269.6,3269.5,0.0022737]
[1642418842891,2.61949527,3269.7,3269.5,0.0022737]
[1642418843493,2.81758072,3269.6,3269.5,0.0022737]
[1642418843693,2.83755721,3269.6,3269.5,0.0022737]
[1642418843894,2.81074158,3269.6,3269.5,0.0022737]
[1642418844347,3.74034158,3269.6,3269.5,0.0022737]
[1642418844748,0.9296,3269.6,3269.5,0.0022737]
[1642418845145,3.83061911,3269.6,3269.5,0.0022737]
[1642418845345,6.45036862,3269.6,3269.5,0.0022737]
[1642418845947,6.40715914,3269.6,3269.5,0.0022737]
[1642418846346,6.34397219,3269.6,3269.5,0.0022737]
[1642418846547,6.34977501,3269.6,3269.5,0.0022737]
[1642418846746,6.38375044,3269.6,3269.5,0.0022737]
[1642418846948,6.35101123,3269.6,3269.5,0.0022737]
[1642418847148,6.36374364,3269.6,3269.5,0.0022737]
[1642418847348,6.36374364,3269.6,3269.4,1.0]
[1642418847349,8.53892814,3269.6,3269.4,1.0]
[1642418847548,3.07549987,3269.5,3269.4,1.0]
[1642418848201,2.64493401,3269.6,3269.4,1.0]
[1642418849597,2.66373476,3269.5,3269.4,1.0]
[1642418850598,0.04398525,3269.5,3269.4,1.0]
[1642418852242,0.0251845,3269.6,3269.4,1.0]
[1642418852243,6.975e-05,3269.6,3269.4,1.0]
[1642418852442,0.00227369,3270.3,3269.4,1.01774377]
[1642418852644,0.00227369,3270.3,3269.6,0.76439]
[1642418852841,0.00397897,3270.2,3269.6,0.76439]
[1642418853243,0.00341054,3270.1,3269.6,0.76439]
[1642418853647,4.7572,3270.9,3269.6,0.76439]
[1642418853648,0.00284212,3270.0,3269.6,0.76439]
[1642418854047,0.0022737,3269.9,3269.6,0.76439]
[1642418854248,0.0022737,3269.9,3269.7,1.25857818]
[1642418854447,0.00170527,3269.8,3269.7,1.25857818]
[1642418855989,0.00170527,3269.8,3269.6,0.76439]
[1642418856198,0.00170527,3269.8,3269.6,2.06439]
[1642418856492,0.00113685,3269.7,3269.6,1.3]
[1642418857390,0.00113685,3269.7,3269.6,1.31773798]
[1642418857992,0.00113685,3269.7,3269.6,0.01773798]
[1642418874939,2.62028698,3269.7,3269.6,0.01773798]
[1642418876238,0.00113685,3269.7,3269.6,0.01773798]
[1642418877439,0.00113685,3269.7,3269.6,0.0127631]
[1642418880695,5.25853864,3269.6,3268.5,8.7955]
[1642418880999,0.738,3269.5,3268.7,0.00454738]
[1642418881194,1.738,3269.5,3268.7,0.00454738]
[1642418881595,1.738,3269.5,3268.5,0.00568423]
[1642418881854,22.23715013,3269.5,3268.5,0.00568423]
[1642418882245,22.23715013,3269.5,3268.4,0.00625265]
[1642418882448,18.64499,3269.4,3268.7,0.01758867]
[1642418882648,0.438,3269.3,3268.7,0.01758867]
[1642418882849,0.438,3269.3,3268.8,0.00397896]
[1642418883048,3.3598544,3269.2,3268.8,0.00397896]
[1642418883447,21.2398544,3269.2,3268.8,0.00397896]
[1642418883647,22.769856,3269.2,3268.8,0.00397896]
[1642418883847,18.318,3269.1,3268.8,0.00397896]
[1642418884049,3.09435566,3269.0,3268.8,0.00397896]
[1642418884247,0.438,3268.9,3268.8,0.00397896]
[1642418884450,3.74138892,3268.9,3268.8,0.00397896]
[1642418885790,3.44138892,3268.9,3268.8,0.00397896]
[1642418886394,6.06053905,3268.9,3268.8,0.00397896]
[1642418886594,24.24053905,3268.9,3268.8,0.00397896]
[1642418886796,25.54053905,3268.9,3268.8,0.00397896]
[1642418887301,25.5770207,3268.9,3268.8,0.00397896]
[1642418887494,29.25553133,3268.9,3268.8,0.00397896]
[1642418888896,30.84830366,3268.9,3268.8,0.00397896]
[1642418889095,0.00379857,3268.7,3268.6,0.01762384]
[1642418889339,21.60061621,3268.7,3268.6,0.01762384]
[1642418889541,22.60061621,3268.7,3268.6,0.01876069]
[1642418889754,17.88,3268.5,3267.1,1.86333272]
[1642418889947,17.88,3268.5,3267.1,0.79896457]
[1642418889948,0.01240066,3267.8,3267.1,0.79896457]
[1642418890145,0.438,3267.7,3267.2,0.00795793]
[1642418890345,3.02707087,3267.6,3267.2,0.00795793]
[1642418890541,0.438,3267.7,3267.2,0.00795793]
[1642418890542,0.6538,3267.7,3267.2,0.00795793]
[1642418890742,0.6538,3267.7,3266.7,0.01080004]
[1642418890944,3.07370447,3267.6,3266.7,0.01080004]
[1642418892145,4.03827223,3267.7,3266.7,0.01080004]
[1642418892352,0.02733355,3267.5,3266.7,0.01080004]
[1642418893093,0.02733355,3267.5,3266.5,0.01193689]
[1642418894503,1.2033892,3267.4,3266.5,0.01193689]
[1642418894896,1.2033892,3267.4,3266.2,0.01364216]
[1642418895292,1.2033892,3267.4,3266.2,1.23962633]
[1642418895495,1.6564,3267.4,3266.2,1.23962633]
[1642418895692,1.6564,3267.4,3266.3,0.01307374]
[1642418895892,0.25997495,3267.3,3266.3,0.01307374]
[1642418896093,0.438,3267.2,3266.3,0.01307374]
[1642418896496,2.79238924,3267.1,3266.3,0.01307374]
[1642418896753,18.318,3267.0,3266.3,0.01307374]
[1642418896945,18.318,3267.0,3266.0,0.125178]
[1642418896946,18.318,3267.0,3266.1,0.01421058]
[1642418897745,19.08354,3267.0,3266.1,0.01421058]
[1642418898344,0.76556,3266.9,3266.1,0.01421058]
[1642418898546,0.438,3266.8,3266.1,0.01421058]
[1642418898746,3.48291397,3266.8,3266.1,0.01421058]
[1642418902299,3.51024509,3266.8,3266.1,0.01421058]
[1642418904741,3.55704054,3266.8,3266.1,0.01421058]
[1642418904942,0.51212657,3266.8,3266.2,0.02711286]
[1642418905444,0.51212657,3266.8,3266.3,0.01307374]
[1642418905843,0.51212657,3266.8,3266.2,0.01364216]
[1642418906239,0.51212657,3266.8,3266.1,0.01421058]
[1642418906640,0.9683558,3266.8,3266.1,0.01421058]
[1642418906843,3.10445858,3266.7,3266.1,0.01421058]
[1642418907042,0.5303558,3266.8,3266.1,0.01421058]
[1642418907440,3.6427707,3266.7,3266.1,0.01421058]
[1642418908593,19.083574,3266.7,3266.1,0.01421058]
[1642418908994,1.203574,3266.7,3266.1,0.01421058]
[1642418909194,0.438,3266.7,3266.1,0.01421058]
[1642418910601,2.97620129,3266.6,3266.1,0.01421058]
[1642418910796,0.438,3266.6,3266.1,0.01421058]
[1642418912548,0.46532971,3266.6,3266.1,0.01421058]
[1642418914250,0.02732971,3266.6,3266.1,0.01421058]
[1642418914651,0.04674976,3266.5,3266.1,0.01421058]
[1642418915249,0.04674976,3266.5,3266.1,1.21754924]
[1642418915694,0.04674976,3266.5,3266.2,0.01364216]
[1642418916092,0.04674976,3266.5,3266.2,2.43035429]
[1642418916295,0.04674976,3266.5,3266.2,0.01364216]
[1642418916495,0.04674976,3266.5,3266.3,0.01307374]
[1642418916697,0.04674976,3266.5,3266.2,0.01364216]
[1642418916895,0.04674976,3266.5,3266.2,2.44617885]
[1642418917095,0.04674976,3266.5,3266.2,0.01364216]
[1642418917294,0.04674976,3266.5,3266.3,0.01307374]
[1642418918601,0.04674976,3266.5,3266.2,0.01364216]
[1642418919256,0.04674976,3266.5,3266.2,2.4616982]
[1642418919550,0.04674976,3266.5,3266.3,0.01307374]
[1642418921453,0.04674976,3266.5,3266.2,0.01364216]
[1642418922352,0.04674976,3266.5,3266.2,2.43048455]
[1642418922553,0.04674976,3266.5,3266.2,0.01364216]
[1642418922753,0.04674976,3266.5,3266.3,0.01307374]
[1642418922996,0.04674976,3266.5,3266.1,1.50333866]
[1642418922997,0.04674976,3266.5,3266.2,2.45666762]
[1642418923193,0.04674976,3266.5,3266.2,0.01364216]
[1642418923392,0.04674976,3266.5,3266.3,0.01307374]
[1642418923594,0.04674976,3266.5,3266.2,0.01364216]
[1642418925496,0.04674976,3266.5,3266.1,0.01421058]
[1642418926942,0.04674976,3266.5,3266.2,1.22291985]
[1642418927342,0.04674976,3266.5,3266.3,0.01307374]
[1642418929244,0.04674976,3266.5,3266.2,1.18599359]
[1642418929445,0.04674976,3266.5,3266.0,0.125178]
[1642418929844,0.03146512,3266.5,3266.1,0.00113684]
[1642418930693,0.03146512,3266.5,3266.1,1.09413156]
[1642418930894,0.03146512,3266.5,3266.2,2.53750104]
[1642418931102,0.03146512,3266.5,3266.1,1.09413156]
[1642418931501,0.03146512,3266.5,3266.1,0.00113684]
[1642418933499,2.62224872,3266.4,3266.1,0.00113684]
[1642418935152,3.70384872,3266.4,3266.1,0.00113684]
[1642418935351,18.318,3266.3,3266.1,0.00113684]
[1642418935548,6.75,3266.2,3266.0,0.002726]
[1642418935752,9.94554872,3266.4,3266.0,0.002726]
[1642418935753,17.88,3266.1,3266.0,0.002726]
[1642418935951,18.318,3266.1,3266.0,0.002726]
[1642418936350,19.43499866,3266.1,3265.0,2.98904191]
[1642418936551,0.7657583,3265.9,3265.0,2.98904191]
[1642418936755,1.2037583,3265.9,3265.1,0.00568424]
[1642418937550,19.0837583,3265.9,3265.1,0.00568424]
[1642418937993,19.3837583,3265.9,3265.1,0.00568424]
[1642418938596,2.62224872,3265.8,3265.1,0.00568424]
[1642418939000,2.62224872,3265.8,3264.9,0.00682109]
[1642418939597,2.62224872,3265.8,3264.9,0.4116573]
[1642418939796,0.03146342,3265.7,3264.9,0.4116573]
[1642418940099,0.03146342,3265.7,3265.0,0.00625266]
[1642418941098,2.62224872,3265.6,3265.0,0.00625266]
[1642418941298,2.62224872,3265.6,3265.0,0.41108887]
[1642418941950,0.03146342,3265.7,3265.1,2.41370437]
[1642418942147,0.03146342,3265.7,3265.2,0.40483621]
[1642418942347,0.03146342,3265.7,3265.2,0.40995203]
[1642418942545,0.03174473,3265.6,3265.3,0.00454739]
[1642418942747,0.03174473,3265.6,3265.5,0.40483621]
[1642418942946,0.03174473,3265.6,3265.5,3.07933045]
[1642418943246,2.65464166,3265.6,3265.5,3.08274099]
[1642418944046,2.65464166,3265.6,3265.5,0.40824675]
[1642418944247,0.03174473,3265.6,3265.5,0.40824675]
[1642418944659,0.1023764,3265.6,3265.5,2.82604214]
[1642418944845,0.1023764,3265.6,3265.5,0.40824675]
[1642418945047,0.1023764,3265.6,3265.5,2.82735072]
[1642418945499,0.1023764,3265.6,3265.5,2.83822662]
[1642418945898,0.1023764,3265.6,3265.5,3.83822662]
[1642418946098,7.64e-05,3265.6,3265.5,3.83822662]
[1642418947901,7.64e-05,3265.6,3265.5,0.40824675]
[1642418949751,0.00113684,3266.3,3265.5,0.40824675]
[1642418950149,0.00113684,3266.3,3265.6,0.00284212]
[1642418951146,2.62359754,3266.3,3265.6,0.00284212]
[1642418951547,2.92359754,3266.3,3265.6,0.00284212]
[1642418951747,2.62359754,3266.3,3265.6,0.00284212]
[1642418952351,2.92359754,3266.3,3265.8,0.02232689]
[1642418952546,3.36159754,3266.3,3265.8,0.02232689]
[1642418952746,3.36159754,3266.3,3265.9,0.00113685]
[1642418954000,2.6224607,3266.2,3265.9,0.00113685]
[1642418957844,2.6224607,3266.2,3265.7,0.0022737]
[1642418958047,20.8024607,3266.2,3265.7,0.0022737]
[1642418958245,2.9224607,3266.2,3265.7,0.0022737]
[1642418959245,2.6224607,3266.1,3265.7,0.0022737]
[1642418960595,2.9224607,3266.1,3265.7,0.0022737]
[1642418960793,2.6224607,3266.1,3265.7,0.0022737]
[1642418961997,0.438,3266.0,3265.7,0.0022737]
[1642418962595,18.318,3266.0,3265.7,0.0022737]
[1642418962801,19.58056876,3266.0,3265.6,0.00284212]
[1642418964264,2.6224607,3265.9,3265.6,0.00284212]
[1642418964448,3.0604607,3265.9,3265.6,0.00284212]
[1642418964649,17.88,3265.8,3265.6,0.00284212]
[1642418966051,20.5024607,3265.7,3265.6,0.00284212]
[1642418966250,20.9404607,3265.7,3265.6,0.00284212]
[1642418967053,3.0604607,3265.7,3265.6,0.00284212]
[1642418967852,3.0604607,3265.7,3265.5,0.00341054]
[1642418968696,20.9404607,3265.7,3265.5,0.00341054]
[1642418968897,20.5024607,3265.6,3265.5,0.00341054]
[1642418969100,20.9404607,3265.6,3265.5,0.00341054]
[1642418969296,3.0604607,3265.6,3265.5,0.00341054]
[1642418969898,2.6224607,3265.6,3265.5,0.00341054]
[1642418970501,20.5024607,3265.6,3265.5,0.00341054]
[1642418971601,2.6224607,3265.6,3265.5,0.00341054]
[1642418973149,2.6224607,3265.6,3265.5,0.40824675]
[1642418974447,2.92889505,3265.6,3265.5,0.40824675]
[1642418974647,21.24689505,3265.6,3265.5,0.40824675]
[1642418975048,3.0604607,3265.6,3265.5,0.40824675]
[1642418975249,2.6224607,3265.6,3265.5,0.40824675]
[1642418976100,20.5024607,3265.6,3265.5,0.40824675]
[1642418977300,20.5024607,3265.6,3265.5,0.42040409]
[1642418977504,24.07238017,3265.6,3265.5,0.42040409]
[1642418978302,6.19238017,3265.6,3265.5,0.42040409]
[1642418979351,2.6224607,3265.6,3265.5,0.42040409]
[1642418979750,20.5024607,3265.6,3265.5,0.42040409]
[1642418980359,20.5024607,3265.6,3264.7,1.6205929]
[1642418980360,0.7659005,3265.5,3264.7,1.6205929]
[1642418980554,0.438,3265.4,3264.7,1.6205929]
[1642418980750,17.88,3265.3,3264.8,0.00397897]
[1642418980950,18.318,3265.3,3264.8,0.00397897]
[1642418982651,17.88,3265.1,3264.8,0.00397897]
[1642418982852,18.318,3265.0,3264.8,0.00397897]
[1642418983707,6.19238017,3264.9,3264.8,0.00397897]
[1642418983906,24.51038017,3264.9,3264.8,0.00397897]
[1642418984802,24.57013943,3264.9,3264.8,0.00397897]
[1642418985603,21.00021996,3264.9,3264.8,0.00397897]
[1642418987561,20.56221996,3264.9,3264.8,0.00397897]
[1642418994099,20.56221996,3264.9,3264.8,2.50865478]
[1642418994100,2.68221996,3264.9,3264.8,2.50865478]
[1642418994550,2.68221996,3264.9,3264.8,2.46855778]
[1642418994848,2.68221996,3264.9,3264.8,2.42560971]
[1642418995047,2.68221996,3264.9,3264.8,2.43198799]
[1642418995653,0.05975926,3264.9,3264.8,2.43198799]
[1642418996555,0.05975926,3264.9,3264.8,3.60715501]
[1642418996952,5.926e-05,3264.9,3264.8,2.44497539]
[1642418998502,5.926e-05,3264.9,3264.8,2.74497539]
[1642418998700,5.926e-05,3264.9,3264.8,2.44497539]
[1642418999602,6.26623495,3266.1,3264.8,2.44497539]
[1642419000001,0.00284211,3266.0,3264.9,0.00341055]
[1642419000203,1.1951709,3265.8,3264.9,0.00341055]
[1642419000601,18.318,3265.7,3264.9,0.00341055]
[1642419002254,17.88,3265.5,3264.9,0.00341055]
[1642419002454,0.438,3265.4,3264.9,0.00341055]
[1642419003066,17.88,3265.3,3264.9,0.00341055]
[1642419003354,18.318,3265.3,3264.9,0.00341055]
[1642419003555,20.94103682,3265.3,3264.9,0.00341055]
[1642419004256,2.62303682,3265.2,3264.9,0.00341055]
[1642419005055,2.62303682,3265.2,3264.7,1.6205929]